fUSD/lending_fUSD_20250630
["ID","MTS","AMOUNT","RATE_DAILY","PERIOD"]
[368663096,1751277033269,-490.0,0.00014499,2]
[368663097,1751277033279,-614.23,0.00014499,2]
[368663098,1751277033289,-889.74,0.00014499,2]
[368663099,1751277033298,-181.93074193,0.00014499,2]
[368663100,1751277037562,-308.06925807,0.00014499,2]
[368663101,1751277037572,-490.0,0.00014499,2]
[368663102,1751277037581,-44.37535893,0.00014499,2]
[368663107,1751277037866,-8.07575229,0.00014499,2]
[368663123,1751277038010,-437.54888878,0.00014499,2]
[368663125,1751277038022,-490.0,0.00014499,2]
[368663127,1751277038033,-5456.67,0.00014499,2]
[368663130,1751277038044,-1285.75,0.00014499,2]
[368663132,1751277038057,-539.9,0.00014499,2]
[368663134,1751277038071,-490.0,0.00014499,2]
[368663137,1751277038082,-490.92212399,0.00014499,2]
[368663139,1751277038092,-1395.31,0.00014499,2]
[368663141,1751277038104,-490.0,0.00014499,2]
[368663143,1751277038117,-151.0,0.00014499,2]
[368663146,1751277038128,-490.0,0.00014499,2]
[368663148,1751277038140,-490.0,0.00014499,2]
[368663150,1751277038150,-714.09,0.00014499,2]
[368663152,1751277038161,-490.0,0.00014499,2]
[368663155,1751277038182,-597.17,0.00014499,2]
[368663158,1751277038193,-1709.84,0.00014499,2]
[368663160,1751277038205,-490.0,0.00014499,2]
[368663162,1751277038217,-151.0,0.00014499,2]
[368663164,1751277038228,-520.73,0.00014499,2]
[368663166,1751277038239,-975.96165542,0.00014499,2]
[368663169,1751277038254,-2291.97454187,0.00014499,2]
[368663172,1751277038268,-7.22380271,0.00014499,2]
[368663174,1751277038280,-396.0143521,0.00014499,2]
[368663176,1751277038294,-350.41025033,0.00014499,2]
[368663190,1751277039724,-602.30539757,0.00014499,2]
[368663191,1751277039736,-2129.28,0.00014499,2]
[368663192,1751277039748,-4434.36,0.00014499,2]
[368663193,1751277039761,-490.0,0.00014499,2]
[368663194,1751277039772,-16984.05460243,0.00014499,2]
[368663195,1751277039825,-376.34000002,0.00014499,2]
[368663197,1751277040101,-2682.52714296,0.00014499,2]
[368663198,1751277040113,-19.27285704,0.000145,2]
[368663245,1751277046001,-575.81,0.00014499,2]
[368663247,1751277046011,-447.7818759,0.00014499,2]
[368663249,1751277046020,-490.0,0.00014499,2]
[368663251,1751277046029,-151.0,0.00014499,2]
[368663253,1751277046038,-202908.40812409,0.000145,2]
[368663255,1751277046049,-49442.3248658,0.000145,2]
[368663257,1751277046062,-10731.03925406,0.000145,2]
[368663274,1751277094429,200.0,0.00013817,2]
[368663275,1751277204016,200.0,0.00013707,2]
[368663277,1751277302326,533.05,0.00013599,2]
[368663278,1751277341853,1404.45,0.00013594,2]
[368663279,1751277473491,160.65,0.00013573,2]
[368663280,1751277482879,507.0,0.00014005,2]
[368663281,1751277509454,413.99997,0.00014005,2]
[368663282,1751277645882,23900.0,0.00013581,2]
[368663286,1751277715228,1000.0,0.00013519,2]
[368663287,1751277744997,324.53,0.0001351,2]
[368663288,1751277745189,324.53,0.00013514,2]
[368663289,1751277745391,324.53,0.00013518,2]
[368663290,1751277745602,324.53,0.00013521,2]
[368663291,1751277745835,324.53,0.00013525,2]
[368663292,1751277746108,324.53,0.00013528,2]
[368663293,1751277746218,324.53,0.00013532,2]
[368663294,1751277746413,324.53,0.00013535,2]
[368663295,1751277746627,324.53,0.00013539,2]
[368663296,1751277746826,324.53,0.00013543,2]
[368663297,1751277747634,324.53,0.00013546,2]
[368663298,1751277747778,324.53,0.0001355,2]
[368663299,1751277747929,324.53,0.00013553,2]
[368663300,1751277749003,324.53,0.00013557,2]
[368663301,1751277749085,324.53,0.0001356,2]
[368663302,1751277749257,324.53,0.00013564,2]
[368663303,1751277749328,324.53,0.00013567,2]
[368663304,1751277749436,324.53,0.00013571,2]
[368663305,1751277749574,324.53,0.00013575,2]
[368663306,1751277749657,324.53,0.00013578,2]
[368663308,1751277788406,254.11,0.00013501,2]
[368663309,1751277809575,200.0,0.00013469,2]
[368663310,1751277854540,281.9,0.00013699,2]
[368663311,1751277855309,168.01,0.00013916,2]
[368663313,1751277872345,250.0,0.00013511,2]
[368663314,1751278015584,217.1,0.00013476,2]
[368663315,1751278227543,354.0,0.00027397,120]
[368663317,1751278231657,-673.23251227,0.00014297,2]
[368663318,1751278231668,-1125.95243216,0.00014297,2]
[368663319,1751278231678,-936.02011657,0.00014366,2]
[368663320,1751278231689,-2943.96108849,0.00014366,2]
[368663321,1751278231700,-58.64188629,0.0001437,2]
[368663322,1751278231711,-600.0,0.0001437,2]
[368663323,1751278231763,-3221.3393187,0.0001437,2]
[368663324,1751278231773,-1674.17826672,0.00014374,2]
[368663325,1751278231784,-787.0,0.00014374,2]
[368663326,1751278231796,-1418.80293827,0.00014374,2]
[368663327,1751278231805,-1401.35314632,0.00014377,2]
[368663328,1751278231817,-629.84571173,0.00014377,2]
[368663329,1751278231828,-1068.37550234,0.00014377,2]
[368663330,1751278231868,-780.4068446,0.00014377,2]
[368663331,1751278231877,-3879.98120499,0.00014381,2]
[368663332,1751278231885,-3879.98120499,0.00014385,2]
[368663333,1751278231894,-3879.98120499,0.00014389,2]
[368663334,1751278231902,-515.0,0.00014397,2]
[368663335,1751278231910,-1200.0,0.00014397,2]
[368663336,1751278231919,-2427.61694109,0.00014398,2]
[368663337,1751278231928,-159.35053402,0.00014398,2]
[368663338,1751278231937,-1000.0,0.00014399,2]
[368663339,1751278231946,-1053.466,0.00014399,2]
[368663340,1751278231956,-8071.0701,0.00014399,2]
[368663341,1751278231965,-18226.7129,0.00014399,2]
[368663342,1751278231974,-155.373,0.000144,2]
[368663343,1751278231982,-432.3416022,0.000144,2]
[368663344,1751278231991,-183.53716159,0.000144,2]
[368663345,1751278232000,-435.48681628,0.000144,2]
[368663346,1751278232007,-1499.40019902,0.000144,2]
[368663347,1751278232015,-2427.61694108,0.00014416,2]
[368663348,1751278232024,-207.4,0.0001442,2]
[368663349,1751278232033,-6912.642,0.0001442,2]
[368663351,1751278232041,-150.99,0.00014429,2]
[368663353,1751278232050,-299.99,0.00014429,2]
[368663355,1751278232059,-17551.41340505,0.00014429,2]
[368663358,1751278232071,-41574.18659495,0.00014429,2]
[368663360,1751278232080,-9999.99,0.00014429,2]
[368663362,1751278232090,-5989.84,0.00014429,2]
[368663364,1751278232099,-2427.61694108,0.00014434,2]
[368663365,1751278232108,-319.2,0.00014438,2]
[368663368,1751278232118,-337.0,0.00014438,2]
[368663369,1751278232127,-999.99,0.00014438,2]
[368663371,1751278232137,-228.9,0.00014438,2]
[368663373,1751278232146,-2427.61694108,0.00014451,2]
[368663375,1751278232155,-48342.64471806,0.00014466,2]
[368663378,1751278232166,-1284.84,0.00014466,2]
[368663380,1751278232177,-2540.51528194,0.00014466,2]
[368663382,1751278232187,-1614.0,0.00014466,2]
[368663384,1751278232196,-2427.61694108,0.00014469,2]
[368663386,1751278232207,-500.0,0.00014473,2]
[368663388,1751278232216,-500.0,0.00014473,2]
[368663390,1751278232225,-500.0,0.00014473,2]
[368663392,1751278232234,-500.0,0.00014473,2]
[368663394,1751278232243,-158.08756699,0.00014473,2]
[368663396,1751278232252,-502.35896507,0.00014473,2]
[368663398,1751278232261,-2347.51912582,0.00014475,2]
[368663400,1751278232271,-2427.61694108,0.00014487,2]
[368663402,1751278232280,-209.21711344,0.00014488,2]
[368663404,1751278232290,-151.66,0.00014488,2]
[368663406,1751278232299,-151.66,0.00014488,2]
[368663408,1751278232308,-500.0,0.0001449,2]
[368663410,1751278232318,-500.0,0.0001449,2]
[368663412,1751278232328,-500.0,0.0001449,2]
[368663414,1751278232337,-160.0,0.0001449,2]
[368663416,1751278232346,-500.0,0.0001449,2]
[368663418,1751278232355,-300.0,0.0001449,2]
[368663420,1751278232365,-166.55,0.0001449,2]
[368663422,1751278232374,-500.0,0.0001449,2]
[368663424,1751278232383,-500.0,0.0001449,2]
[368663426,1751278232392,-300.0,0.0001449,2]
[368663428,1751278232402,-269.44723056,0.0001449,2]
[368663430,1751278232411,-286.54,0.0001449,2]
[368663432,1751278232420,-168.01,0.0001449,2]
[368663434,1751278232431,-490.0,0.00014496,2]
[368663436,1751278232442,-490.0,0.00014496,2]
[368663437,1751278232452,-490.0,0.00014496,2]
[368663439,1751278232461,-490.0,0.00014496,2]
[368663442,1751278232471,-490.0,0.00014496,2]
[368663443,1751278232480,-637.52,0.00014496,2]
[368663445,1751278232489,-601.62,0.00014496,2]
[368663447,1751278232498,-1549.27,0.00014496,2]
[368663449,1751278232507,-338.54939432,0.00014496,2]
[368663451,1751278232522,-151.45060568,0.00014496,2]
[368663453,1751278232531,-490.0,0.00014496,2]
[368663455,1751278232540,-490.0,0.00014496,2]
[368663457,1751278232549,-180.9015198,0.00014496,2]
[368663459,1751278232560,-1256.8684802,0.00014496,2]
[368663461,1751278232570,-61.97154668,0.00014496,2]
[368663465,1751278232597,-644.97380689,0.00014496,2]
[368663481,1751278237626,-1550.73238527,0.00014392,2]
[368663482,1751278237680,-1567.16541801,0.00014392,2]
[368663483,1751278237690,-370.06678591,0.00014392,2]
[368663484,1751278237720,-392.0166158,0.00014392,2]
[368663485,1751278237730,-109.76400914,0.00014496,2]
[368663486,1751278237968,-298.53063729,0.00014496,2]
[368663487,1751278237977,-1304.16485505,0.00014496,2]
[368663554,1751278239884,-91.18514495,0.00014496,2]
[368663555,1751278239894,-984.21485505,0.00014496,2]
[368663558,1751278242722,-274.34613789,0.00014396,2]
[368663560,1751278242808,-280.30303109,0.00014396,2]
[368663561,1751278242820,-735.915,0.00014396,2]
[368663562,1751278242972,-429.83681559,0.00014396,2]
[368663567,1751278246863,-522.52934231,0.00014396,2]
[368663568,1751278246875,-1637.05087811,0.00014396,2]
[368663569,1751278246885,-194.62588585,0.000144,2]
[368663570,1751278247070,-809.415042,0.000144,2]
[368663571,1751278353044,793.21,0.00013562,2]
[368663572,1751278353098,313.22,0.00013586,2]
[368663573,1751278485439,204.34,0.00013521,2]
[368663574,1751278520228,500.0,0.00014497,10]
[368663575,1751278520303,500.0,0.00014499,10]
[368663576,1751278520452,500.0,0.00014771,10]
[368663577,1751278521476,500.0,0.00014497,10]
[368663578,1751278521611,500.0,0.00014499,10]
[368663579,1751278522099,500.0,0.00014771,10]
[368663580,1751278523014,500.0,0.00014497,10]
[368663581,1751278523164,500.0,0.00014499,10]
[368663582,1751278523525,500.0,0.00014771,10]
[368663583,1751278524242,500.0,0.00014497,10]
[368663584,1751278524342,500.0,0.00014499,10]
[368663585,1751278524477,500.0,0.00014771,10]
[368663586,1751278525385,500.0,0.00014497,10]
[368663587,1751278525597,500.0,0.00014499,10]
[368663588,1751278525732,500.0,0.00014771,10]
[368663589,1751278526719,500.0,0.00014497,10]
[368663590,1751278527076,500.0,0.00014499,10]
[368663591,1751278527240,500.0,0.00014771,10]
[368663592,1751278528154,500.0,0.00014497,10]
[368663593,1751278528863,295.22,0.00014499,10]
[368663594,1751278528886,204.78,0.00014499,10]
[368663595,1751278529256,500.0,0.00014771,10]
[368663596,1751278529749,500.0,0.00014497,10]
[368663597,1751278529899,500.0,0.00014499,10]
[368663598,1751278529954,500.0,0.00014771,10]
[368663599,1751278530734,500.0,0.00014497,10]
[368663600,1751278530890,500.0,0.00014499,10]
[368663601,1751278531191,500.0,0.00014771,10]
[368663602,1751278532147,500.0,0.00014497,10]
[368663603,1751278532288,500.0,0.00014499,10]
[368663604,1751278532446,500.0,0.00014771,10]
[368663605,1751278533326,500.0,0.00014497,10]
[368663606,1751278533520,500.0,0.00014499,10]
[368663607,1751278533666,295.22,0.00014771,10]
[368663608,1751278558809,507.0,0.00014071,2]
[368663609,1751278671792,167.72,0.00013508,2]
[368663610,1751278767738,500.0,0.000141,2]
[368663611,1751278828982,1000.0,0.00013456,2]
[368663612,1751279037677,200.93342416,0.00013389,2]
[368663617,1751279105531,23900.0,0.00013454,2]
[368663618,1751279108100,92022.52275164,0.00014,2]
[368663619,1751279161702,250.0,0.00013434,2]
[368663621,1751279179546,281.57,0.00013699,2]
[368663622,1751279268265,200.0,0.00013699,2]
[368663623,1751279280185,98244.50517217,0.00014,2]
[368663624,1751279281284,300.0,0.00013999,2]
[368663625,1751279294986,160.48,0.00014,2]
[368663626,1751279298037,169.14,0.00013408,2]
[368663627,1751279298238,169.14,0.00013475,2]
[368663628,1751279301299,191.20537099,0.00012,30]
[368663635,1751279381067,150.0,0.00013412,2]
[368663640,1751279431887,-372.324756,0.00014128,2]
[368663642,1751279431897,-167.74927126,0.000142,2]
[368663643,1751279431907,-1200.0,0.00014299,2]
[368663644,1751279431916,-300.0,0.00014299,2]
[368663645,1751279431926,-150.0,0.00014299,2]
[368663646,1751279431937,-771.69629375,0.000143,2]
[368663647,1751279431995,-1255.34743466,0.000143,2]
[368663648,1751279432051,-43181.25663661,0.000143,2]
[368663649,1751279432062,-3019.423148,0.000143,2]
[368663650,1751279432074,-1772.27648698,0.000143,2]
[368663651,1751279432083,-434.69485707,0.000143,2]
[368663652,1751279432093,-434.69485703,0.00014311,2]
[368663653,1751279432102,-55.87211892,0.00014322,2]
[368663654,1751279432143,-378.82273811,0.00014322,2]
[368663655,1751279432152,-434.69485703,0.00014333,2]
[368663656,1751279432162,-260.08240486,0.00014344,2]
[368663800,1751279437886,-174.61245217,0.00014344,2]
[368663801,1751279437896,-3851.78137773,0.0001435,2]
[368663883,1751279439005,-64.76044227,0.0001435,2]
[368663885,1751279439015,-434.69485703,0.00014356,2]
[368663887,1751279439025,-542.96578452,0.00014366,2]
[368663890,1751279439046,-457.03421548,0.00014366,2]
[368663892,1751279439055,-0.33490631,0.00014367,2]
[368663933,1751279443024,-434.35995072,0.00014367,2]
[368663934,1751279443034,-261.12273393,0.00014378,2]
[368663935,1751279443057,-173.5721231,0.00014378,2]
[368663936,1751279443067,-207.9478769,0.00014383,2]
[368663937,1751279443079,-6704.6941231,0.00014383,2]
[368663938,1751279443088,-207.4,0.00014383,2]
[368663939,1751279443098,-159.35053402,0.00014386,2]
[368663940,1751279443107,-202.70578222,0.00014386,2]
[368663941,1751279443117,-1000.0,0.00014387,2]
[368663942,1751279443128,-971.04677643,0.00014388,2]
[368663943,1751279443138,-434.69485703,0.00014389,2]
[368663944,1751279443148,-971.04677643,0.00014389,2]
[368663945,1751279443158,-971.04677643,0.00014391,2]
[368663946,1751279443168,-563.42860101,0.00014392,2]
[368663947,1751279443190,-407.61817542,0.00014392,2]
[368663948,1751279443200,-150.99,0.00014393,2]
[368663949,1751279443209,-561.75727568,0.00014393,2]
[368663950,1751279443221,-1683.75311119,0.00014393,2]
[368663951,1751279443322,-1588.72961313,0.00014393,2]
[368663953,1751279443332,-1276.36100661,0.00014393,2]
[368663960,1751279445879,-1718.45974343,0.00014393,2]
[368663961,1751279445891,-484.81623861,0.00014393,2]
[368663962,1751279445934,-5570.45453968,0.00014393,2]
[368663963,1751279446100,-319.71793998,0.00014393,2]
[368663964,1751279446111,-422.3538,0.00014393,2]
[368663965,1751279446220,-207.82673169,0.00014393,2]
[368663966,1751279446229,-124.28623581,0.00014394,2]
[368663967,1751279446241,-282.78234949,0.00014394,2]
[368663969,1751279488506,2913.45,0.00013514,2]
[368663970,1751279581226,170.21601041,0.000273,120]
[368663971,1751279600632,160.65,0.00013412,2]
[368663972,1751279661696,37351.01,0.00013433,2]
[368663973,1751279689520,200.0,0.00013,2]
[368663974,1751279719283,396.6,0.00013429,2]
[368663975,1751279819613,193.17569494,0.00013439,2]
[368663976,1751279837745,1000.0,0.00013391,2]
[368663977,1751279938777,507.0,0.00013352,2]
[368663978,1751280105400,23900.0,0.00013414,2]
[368663982,1751280178037,267.49,0.00013699,2]
[368663984,1751280254866,250.0,0.00013962,2]
[368663985,1751280295797,250.0,0.0001335,2]
[368663986,1751280298848,342.76,0.0001335,2]
[368663989,1751280448742,150.0,0.00013361,2]
[368663991,1751280521773,168.06,0.00013763,2]
[368663992,1751280562035,163.47,0.00013325,2]
[368663996,1751280632235,-182.2847596,0.0001412,2]
[368663997,1751280632246,-800.177182,0.0001421,2]
[368663998,1751280632257,-783.30836,0.0001425,2]
[368663999,1751280632267,-1200.0,0.00014259,2]
[368664000,1751280632279,-3546.30788012,0.0001426,2]
[368664001,1751280632315,-682.16950726,0.0001426,2]
[368664002,1751280632327,-33975.38788385,0.0001426,2]
[368664003,1751280632337,-663.0,0.00014284,2]
[368664004,1751280632347,-4267.7282557,0.00014284,2]
[368664005,1751280632356,-217.34742852,0.00014284,2]
[368664006,1751280632366,-4267.72825562,0.00014285,2]
[368664007,1751280632375,-228.6512,0.00014285,2]
[368664008,1751280632386,-159.35053402,0.00014285,2]
[368664009,1751280632396,-195.90700234,0.00014285,2]
[368664010,1751280632406,-4267.72825562,0.00014285,2]
[368664011,1751280632415,-4267.72825562,0.00014286,2]
[368664012,1751280632424,-4267.72825562,0.00014286,2]
[368664013,1751280632434,-4267.72825562,0.00014287,2]
[368664014,1751280632443,-4267.72825562,0.00014287,2]
[368664015,1751280632453,-4267.72825562,0.00014288,2]
[368664016,1751280632462,-4267.72825562,0.00014288,2]
[368664017,1751280632471,-3368.93089779,0.00014289,2]
[368664028,1751280638093,-832.25,0.00014289,2]
[368664029,1751280638105,-66.54735783,0.00014289,2]
[368664030,1751280638118,-3467.62734433,0.00014289,2]
[368664031,1751280638129,-607.8,0.00014289,2]
[368664032,1751280638157,-192.30091129,0.00014289,2]
[368664033,1751280638166,-648.15860832,0.0001429,2]
[368664034,1751280638177,-271.03590274,0.0001429,2]
[368664035,1751280638198,-3348.53374456,0.0001429,2]
[368664036,1751280638209,-702.13334541,0.0001429,2]
[368664037,1751280638220,-318.90485995,0.0001429,2]
[368664038,1751280638233,-543.48961775,0.0001429,2]
[368664039,1751280638259,-2499.48258898,0.0001429,2]
[368664040,1751280638270,-203.71784353,0.0001429,2]
[368664041,1751280638278,-749.55788471,0.00014291,2]
[368664042,1751280638301,-818.775,0.00014291,2]
[368664291,1751280641136,-2151.8793565,0.00014291,2]
[368664301,1751280643245,-547.51601441,0.00014291,2]
[368664302,1751280643255,-5.98497314,0.00014291,2]
[368664304,1751280643459,-357.0,0.00014291,2]
[368664305,1751280643513,-515.21,0.00014291,2]
[368664336,1751280793799,167.72,0.00013369,2]
[368664337,1751280814155,150.0,0.00014103,4]
[368664338,1751280819514,287.28,0.00013352,2]
[368664339,1751280912746,600.0,0.00027397,120]
[368664340,1751281004990,438.51,0.00027397,120]
[368664341,1751281016815,10000.0,0.00027,120]
[368664342,1751281019651,502.0,0.0001394,2]
[368664343,1751281065032,4186.98940289,0.000141,2]
[368664344,1751281075242,4374.48059711,0.00013303,2]
[368664345,1751281075266,10000.0,0.00013303,2]
[368664346,1751281075287,9525.51940289,0.00013303,2]
[368664351,1751281116949,474.48059711,0.00013324,3]
[368664352,1751281116973,25.51940289,0.00013324,3]
[368664354,1751281171346,265.11,0.00013699,2]
[368664356,1751281216094,1000.0,0.00013257,2]
[368664357,1751281268115,249.11896581,0.00014084,2]
[368664358,1751281279084,200.0,0.00027,120]
[368664359,1751281287206,250.0,0.00013256,2]
[368664360,1751281406138,5888.0,0.00013876,2]
[368664361,1751281559790,520.0,0.00027397,120]
[368664362,1751281596194,160.65,0.00013246,2]
[368664363,1751281602729,601.34518079,0.00014,2]
[368664367,1751281832303,-150.0,0.00014149,2]
[368664368,1751281832313,-917.07436873,0.0001415,2]
[368664378,1751281833101,-1077.6952423,0.0001415,2]
[368664379,1751281833442,-951.8092473,0.0001415,2]
[368664380,1751281833481,-317.20598167,0.0001415,2]
[368664381,1751281833490,-150.0,0.00014153,2]
[368664382,1751281833505,-157.98152819,0.00014153,2]
[368664383,1751281833514,-150.0,0.00014167,2]
[368664384,1751281833524,-159.35053402,0.00014183,2]
[368664385,1751281833534,-207.4,0.00014191,2]
[368664386,1751281833545,-731.21678306,0.00014197,2]
[368664387,1751281833558,-468.78321694,0.00014197,2]
[368664388,1751281833567,-300.0,0.00014197,2]
[368664389,1751281833577,-182.73626738,0.00014198,2]
[368664390,1751281833589,-117.26373262,0.00014198,2]
[368664391,1751281833599,-200.99,0.00014199,2]
[368664392,1751281833609,-685.16599763,0.00014199,2]
[368664393,1751281833625,-314.82400237,0.00014199,2]
[368664394,1751281833635,-500.0,0.000142,2]
[368664395,1751281833644,-150.99,0.000142,2]
[368664396,1751281833654,-141.67914847,0.0001421,2]
[368664399,1751281838371,-558.47588553,0.0001421,2]
[368664400,1751281838381,-150.0,0.00014245,2]
[368664401,1751281838391,-1000.0,0.00014246,4]
[368664402,1751281838400,-1000.0,0.0001427,4]
[368664403,1751281838410,-209.21711344,0.00014273,2]
[368664404,1751281838419,-151.66,0.00014273,2]
[368664405,1751281838428,-1000.0,0.00014274,2]
[368664406,1751281838438,-300.0,0.00014274,2]
[368664407,1751281838447,-636.99495754,0.00014274,2]
[368664408,1751281838456,-668.65185757,0.00014274,2]
[368664409,1751281838465,-500.0,0.00014274,2]
[368664410,1751281838474,-500.0,0.00014274,2]
[368664411,1751281838483,-500.0,0.00014274,2]
[368664412,1751281838493,-500.0,0.00014274,2]
[368664413,1751281838506,-500.0,0.00014274,2]
[368664414,1751281838515,-500.0,0.00014274,2]
[368664415,1751281838525,-300.0,0.00014274,2]
[368664416,1751281838534,-500.0,0.00014274,2]
[368664417,1751281838543,-300.0,0.00014274,2]
[368664418,1751281838554,-500.0,0.00014274,2]
[368664419,1751281838564,-300.0,0.00014274,2]
[368664420,1751281838575,-300.0,0.00014274,2]
[368664421,1751281838585,-500.0,0.00014274,2]
[368664422,1751281838596,-300.0,0.00014274,2]
[368664423,1751281838605,-300.0,0.00014274,2]
[368664424,1751281838615,-300.0,0.00014274,2]
[368664425,1751281838625,-300.0,0.00014274,2]
[368664427,1751281838634,-300.0,0.00014274,2]
[368664429,1751281838643,-300.0,0.00014274,2]
[368664431,1751281838652,-300.0,0.00014274,2]
[368664433,1751281838661,-327.94288873,0.00014274,2]
[368664435,1751281838670,-300.0,0.00014274,2]
[368664437,1751281838679,-300.0,0.00014274,2]
[368664439,1751281838688,-381.88373645,0.00014274,2]
[368664441,1751281838697,-150.0,0.00014275,2]
[368664443,1751281838706,-500.0,0.00014275,2]
[368664445,1751281838715,-150.0,0.00014275,2]
[368664447,1751281838724,-150.35012517,0.00014275,2]
[368664449,1751281838734,-150.0,0.00014275,2]
[368664451,1751281838743,-150.60430409,0.00014275,2]
[368664453,1751281838752,-151.36519073,0.00014275,2]
[368664455,1751281838761,-150.0,0.00014275,2]
[368664456,1751281838771,-500.0,0.00014275,2]
[368664458,1751281838781,-500.0,0.00014275,2]
[368664460,1751281838791,-150.0,0.00014275,2]
[368664462,1751281838800,-150.0,0.00014275,2]
[368664464,1751281838809,-500.0,0.00014275,2]
[368664466,1751281838818,-150.0,0.00014275,2]
[368664468,1751281838828,-500.0,0.00014275,2]
[368664470,1751281838837,-500.0,0.00014275,2]
[368664472,1751281838847,-500.0,0.00014275,2]
[368664474,1751281838856,-150.0,0.00014275,2]
[368664476,1751281838868,-500.0,0.00014275,2]
[368664478,1751281838877,-150.0,0.00014275,2]
[368664480,1751281838886,-150.0,0.00014275,2]
[368664482,1751281838897,-500.0,0.00014275,2]
[368664484,1751281838906,-150.0,0.00014275,2]
[368664486,1751281838915,-150.0,0.00014275,2]
[368664488,1751281838924,-150.0,0.00014275,2]
[368664490,1751281838933,-500.0,0.00014275,2]
[368664492,1751281838943,-150.0,0.00014275,2]
[368664494,1751281838952,-500.0,0.00014275,2]
[368664496,1751281838961,-150.0,0.00014275,2]
[368664498,1751281838972,-531.0,0.00014275,2]
[368664500,1751281838981,-150.41216176,0.00014275,2]
[368664502,1751281838990,-467.0,0.00014275,2]
[368664504,1751281839000,-1609.0,0.00014275,2]
[368664506,1751281839009,-150.0,0.00014275,2]
[368664508,1751281839018,-500.0,0.00014275,2]
[368664510,1751281839027,-150.0,0.00014275,2]
[368664512,1751281839036,-150.0,0.00014275,2]
[368664514,1751281839045,-500.0,0.00014281,2]
[368664516,1751281839054,-500.0,0.00014281,2]
[368664518,1751281839063,-500.0,0.00014281,2]
[368664520,1751281839073,-236.92132704,0.00014281,2]
[368664522,1751281839082,-500.0,0.00014281,2]
[368664524,1751281839091,-393.06310213,0.00014281,2]
[368664526,1751281839100,-500.0,0.00014281,2]
[368664528,1751281839109,-500.0,0.00014281,2]
[368664530,1751281839119,-500.0,0.00014281,2]
[368664532,1751281839128,-289.68567588,0.00014281,2]
[368664534,1751281839137,-500.0,0.00014281,2]
[368664536,1751281839146,-500.0,0.00014281,2]
[368664538,1751281839155,-416.38225137,0.00014281,2]
[368664540,1751281839164,-500.0,0.00014281,2]
[368664542,1751281839173,-554.46262363,0.00014281,2]
[368664544,1751281839182,-490.0,0.00014282,2]
[368664546,1751281839191,-1063.96,0.00014282,2]
[368664578,1751281839491,-490.0,0.00014282,2]
[368664580,1751281839501,-490.0,0.00014282,2]
[368664583,1751281839516,-490.0,0.00014282,2]
[368664584,1751281839525,-490.0,0.00014282,2]
[368664586,1751281839534,-490.0,0.00014282,2]
[368664588,1751281839544,-490.0,0.00014282,2]
[368664590,1751281839554,-914.22,0.00014282,2]
[368664592,1751281839563,-490.0,0.00014282,2]
[368664594,1751281839572,-490.0,0.00014282,2]
[368664596,1751281839583,-490.0,0.00014282,2]
[368664598,1751281839592,-936.35,0.00014282,2]
[368664600,1751281839602,-1072.3,0.00014282,2]
[368664602,1751281839612,-522.61,0.00014282,2]
[368664604,1751281839621,-1949.87,0.00014282,2]
[368664606,1751281839630,-151.0,0.00014282,2]